bitfinex-derivatives/quotes_ETHF0:USTF0_20240925
["timestamp","ask_amount","ask_price","bid_price","bid_amount"]
[1727297837535,0.77942,2581.6,2581.4,1.8089]
[1727297837734,0.38742,2581.5,2581.4,1.8089]
[1727297837941,0.38745,2581.4,2581.2,0.38746]
[1727297838137,0.392,2581.6,2581.1,6.02092405]
[1727297838329,0.392,2581.6,2581.4,1.78743]
[1727297838529,0.392,2581.6,2581.5,0.4089]
[1727297839244,0.392,2581.6,2581.3,1.27244]
[1727297839245,2.17941,2581.6,2581.3,0.885]
[1727297839431,2.17942,2581.6,2581.3,1.65254]
[1727297839632,1.792,2581.6,2581.3,0.3801]
[1727297839827,2.17942,2581.6,2581.3,0.3801]
[1727297840839,2.17942,2581.6,2581.3,0.76755]
[1727297841033,2.17942,2581.6,2581.3,0.3801]
[1727297841229,2.17942,2581.6,2581.3,0.76755]
[1727297842056,0.4053,2581.8,2581.5,3.2078]
[1727297842238,3.05278248,2582.1,2581.7,1.78739]
[1727297842239,0.38736,2582.0,2581.7,1.78739]
[1727297842539,0.38735,2582.0,2581.9,3.2078]
[1727297842735,1.17534,2582.1,2581.9,3.2078]
[1727297843139,0.788,2582.1,2582.0,1.4]
[1727297843341,1.17534,2582.1,2582.0,1.4]
[1727297843643,1.17534,2582.1,2581.9,3.2078]
[1727297843949,0.788,2582.1,2581.9,3.97866]
[1727297844331,1.17534,2582.1,2581.9,0.3835]
[1727297845640,3.2078,2582.3,2582.1,0.38733]
[1727297845839,3.5951,2582.3,2582.2,0.3941]
[1727297846040,3.2078,2582.3,2582.2,0.3941]
[1727297846234,3.2078,2582.3,2582.2,1.7941]
[1727297846441,0.4058,2582.6,2582.2,5.0019]
[1727297846647,0.4058,2582.6,2582.5,0.38727]
[1727297846836,0.4058,2582.6,2582.2,5.0019]
[1727297846837,0.79307,2582.6,2582.2,5.0019]
[1727297847034,0.4058,2582.6,2582.4,0.38728]
[1727297848348,0.4058,2582.6,2582.2,5.0019]
[1727297848544,0.4058,2582.6,2582.4,0.38728]
[1727297849149,0.79306,2582.6,2582.4,0.38729]
[1727297850438,0.3767,2582.8,2582.5,0.38727]
[1727297850642,0.38724,2582.7,2582.6,1.7894]
[1727297850944,0.38724,2582.7,2582.6,0.3894]
[1727297851742,1.4,2582.7,2582.3,1.7873]
[1727297851936,0.3811,2582.6,2582.3,2.6723]
[1727297852139,0.76008,2582.5,2582.3,1.7873]
[1727297852337,2.16008,2582.5,2582.4,0.38729]
[1727297852542,1.7728,2582.5,2582.4,0.38729]
[1727297852739,2.16007,2582.5,2582.4,0.38729]
[1727297853654,0.76007,2582.5,2582.3,1.2723]
[1727297853840,0.76007,2582.5,2582.3,0.885]
[1727297855247,0.76007,2582.5,2582.4,0.38729]
[1727297855449,0.3728,2582.5,2582.4,0.38729]
[1727297856138,0.76009,2582.5,2582.3,0.885]
[1727297856445,0.3728,2582.5,2582.4,0.38729]
[1727297856749,0.7703,2582.5,2582.4,0.38729]
[1727297857449,4.53683,2583.0,2582.6,0.38725]
[1727297857645,0.38723,2582.8,2582.7,0.3804]
[1727297858347,0.78223,2582.9,2582.7,1.7804]
[1727297858642,0.78223,2582.9,2582.8,0.38723]
[1727297858949,0.395,2582.9,2582.8,0.38723]
[1727297859151,0.78221,2582.9,2582.8,0.38723]
[1727297859345,0.395,2582.9,2582.8,0.38723]
[1727297859651,0.78221,2582.9,2582.7,0.76763]
[1727297859838,0.395,2582.9,2582.8,0.38723]
[1727297860034,0.78221,2582.9,2582.8,0.38723]
[1727297860245,0.78222,2582.9,2582.7,0.76764]
[1727297860638,0.38723,2582.8,2582.7,0.76764]
[1727297860838,1.78723,2582.8,2582.6,0.389]
[1727297861046,0.38724,2582.7,2582.6,0.77625]
[1727297861245,0.38726,2582.6,2582.3,3.2078]
[1727297861439,0.38726,2582.6,2582.4,0.38728]
[1727297861440,0.3901,2582.5,2582.4,0.38728]
[1727297861642,0.3901,2582.5,2582.4,0.77338]
[1727297862353,0.77737,2582.5,2582.4,0.77338]
[1727297862652,0.3901,2582.5,2582.4,0.77338]
[1727297863149,0.77737,2582.5,2582.4,0.77338]
[1727297864144,0.3796,2582.6,2582.5,0.38727]
[1727297864348,0.3796,2582.6,2582.5,1.78727]
[1727297864647,0.79665,2582.7,2582.6,0.38726]
[1727297865351,0.79665,2582.7,2582.5,2.18966]
[1727297865744,0.7792,2582.9,2582.6,1.4]
[1727297865946,1.1886,2582.9,2582.8,0.38723]
[1727297866551,1.1886,2582.9,2582.8,0.76273]
[1727297867251,1.57581,2582.9,2582.8,0.76273]
[1727297867455,1.57581,2582.9,2582.8,1.15333]
[1727297868454,1.1886,2582.9,2582.8,0.38723]
[1727297868851,0.38723,2582.8,2582.7,0.38724]
[1727297869056,1.57582,2582.9,2582.8,0.38723]
[1727297869355,1.57583,2582.9,2582.6,0.38726]
[1727297869558,1.57583,2582.9,2582.7,0.38723]
[1727297869759,1.57583,2582.9,2582.8,0.38723]
[1727297874357,1.57583,2582.9,2582.8,0.3937]
[1727297875353,1.57583,2582.9,2582.8,0.78093]
[1727297879163,1.57583,2582.9,2582.7,0.38724]
[1727297879164,0.38723,2582.8,2582.7,0.38724]
[1727297879551,0.38723,2582.8,2582.6,3.2078]
[1727297879552,0.38724,2582.7,2582.6,3.2078]
[1727297881168,0.38726,2582.6,2582.5,1.17907]
[1727297881363,0.77256,2582.6,2582.5,4.38687]
[1727297884955,0.77256,2582.6,2582.5,3.59507]
[1727297888164,0.3853,2582.6,2582.5,4.99507]
[1727297888562,1.16642,2582.9,2582.8,0.38723]
[1727297888763,0.3789,2582.9,2582.8,0.38723]
[1727297889470,0.3789,2582.9,2582.8,0.76013]
[1727297889767,0.77491,2583.0,2582.8,0.76012]
[1727297892567,0.74814,2583.4,2583.2,0.38716]
[1727297892769,0.3729,2583.4,2583.3,1.4]
[1727297892969,0.3729,2583.4,2583.3,1.7885]
[1727297893671,0.76004,2583.4,2583.3,1.7885]
[1727297893869,0.3729,2583.4,2583.3,1.7885]
[1727297894365,0.76004,2583.4,2583.3,0.3885]
[1727297894873,0.3729,2583.4,2583.1,3.2078]
[1727297895067,0.76005,2583.4,2583.1,3.59498]
[1727297895272,0.76005,2583.4,2583.1,3.97228]
[1727297895474,0.38716,2583.3,2583.1,3.97228]
[1727297895675,0.38716,2583.3,2583.1,0.76448]
[1727297895873,0.76005,2583.4,2583.1,0.76448]
[1727297896076,0.76005,2583.4,2583.1,3.97228]
[1727297896271,0.3729,2583.4,2583.1,3.5851]
[1727297896466,0.38715,2583.3,2583.1,3.5851]
[1727297896874,0.3729,2583.4,2583.2,0.38716]
[1727297897379,0.76004,2583.4,2583.2,0.3945]
[1727297897783,0.3729,2583.4,2583.2,0.78166]
[1727297897974,0.76004,2583.4,2583.2,0.78166]
[1727297898474,3.2078,2583.6,2583.2,3.4145]
[1727297898678,0.38713,2583.5,2583.3,0.38715]
[1727297899077,0.38713,2583.5,2583.4,0.3816]
[1727297899278,3.59492,2583.6,2583.4,0.3816]
[1727297900375,0.38712,2583.5,2583.4,0.3816]
[1727297902183,3.59492,2583.6,2583.4,0.76874]
[1727297902883,0.38712,2583.5,2583.4,0.3816]
[1727297903473,0.38712,2583.5,2583.2,3.4145]
[1727297903474,4.1756,2583.6,2583.2,0.38716]
[1727297903676,1.57375,2583.4,2583.3,0.38715]
[1727297903881,1.57375,2583.4,2583.1,4.0918]
[1727297904082,1.57375,2583.4,2583.3,0.38715]
[1727297904680,1.57375,2583.4,2583.2,0.38716]
[1727297905182,1.57375,2583.4,2583.2,0.38717]
[1727297905379,1.1866,2583.4,2583.1,4.0918]
[1727297905572,0.38716,2583.3,2583.2,0.38716]
[1727297906179,0.38716,2583.3,2583.1,4.47898]
[1727297906379,0.38717,2583.2,2583.1,3.2078]
[1727297907477,1.1866,2583.4,2583.3,0.38715]
[1727297908586,1.1866,2583.4,2583.2,0.38716]
[1727297908886,0.38716,2583.3,2583.2,0.38716]
[1727297916381,0.38716,2583.3,2583.2,1.77716]
[1727297920096,0.38723,2582.8,2582.7,3.2078]
[1727297921390,0.38723,2582.8,2582.7,3.59504]
[1727297925188,0.38723,2582.8,2582.7,3.2078]
[1727297926391,0.38723,2582.8,2582.7,3.59504]
[1727297931002,1.35531,2582.8,2582.7,3.2078]
[1727297932400,0.38726,2582.6,2582.5,0.78377]
[1727297932700,0.38727,2582.5,2582.4,4.36709]
[1727297932902,0.77597,2582.5,2582.4,3.59509]
[1727297933094,1.14917,2582.5,2582.4,3.59509]
[1727297933297,1.54467,2582.5,2582.4,3.59509]
[1727297936505,0.38732,2582.2,2582.1,3.59512]
[1727297936799,0.38732,2582.2,2582.1,3.2078]
[1727297937108,1.35563,2582.2,2582.1,3.2078]
[1727297938398,0.38735,2582.0,2581.9,0.76436]
[1727297939703,1.52744,2582.1,2582.0,0.38735]
[1727297939905,0.38735,2582.0,2581.9,0.76436]
[1727297941108,0.7506,2582.1,2582.0,0.38735]
[1727297941406,0.7506,2582.1,2582.0,0.78925]
[1727297941407,1.13793,2582.1,2582.0,0.78925]
[1727297943109,0.7506,2582.1,2582.0,0.78925]
[1727297943304,0.96817,2582.6,2582.0,3.6097]
[1727297943499,0.7931,2582.4,2582.2,3.02]
[1727297943702,0.7931,2582.4,2582.1,3.02]
[1727297943703,0.3873,2582.3,2582.1,3.02]
[1727297944104,0.3873,2582.3,2582.2,0.3778]
[1727297944809,0.3873,2582.3,2582.2,0.76511]
[1727297945406,0.3873,2582.3,2582.2,0.3778]
[1727297946501,0.3873,2582.3,2582.2,0.76512]
[1727297948708,0.3873,2582.3,2582.2,0.3778]
[1727297949812,0.7666,2582.3,2582.0,4.38624]
[1727297950009,0.38733,2582.2,2582.1,0.38733]
[1727297955521,0.3793,2582.3,2582.0,4.3981]
[1727297955522,0.38733,2582.1,2582.0,4.3981]
[1727297955709,0.38733,2582.1,2582.0,3.2078]
[1727297955710,1.74547,2582.1,2582.0,3.2078]
[1727297956112,2.13927,2582.1,2582.0,3.2078]
[1727297957319,0.96838,2582.0,2581.7,4.99519]
[1727297957515,0.38738,2581.8,2581.7,4.99519]
[1727297959421,0.38738,2581.8,2581.7,4.6078]
[1727297959820,0.38739,2581.7,2581.6,1.5813]
[1727297960119,1.35588,2581.7,2581.6,1.1939]
[1727297960322,1.76158,2581.7,2581.6,0.7943]
[1727297960525,0.38742,2581.5,2581.4,0.3809]
[1727297960717,0.38742,2581.5,2581.1,0.38748]
[1727297960718,1.4,2581.5,2581.2,0.407]
[1727297960916,0.3931,2581.4,2581.3,1.78745]
[1727297961223,0.38742,2581.6,2581.4,0.38744]
[1727297961429,0.78052,2581.6,2581.5,0.407]
[1727297962323,0.3931,2581.6,2581.5,0.407]
[1727297962531,0.78051,2581.6,2581.5,0.407]
[1727297980434,0.78051,2581.6,2581.5,0.79442]
[1727297980741,0.38741,2581.6,2581.5,1.55842]
[1727297981040,0.79311,2581.7,2581.6,0.38741]
[1727297981239,0.3768,2581.8,2581.7,0.38739]
[1727297982438,0.76418,2581.8,2581.7,0.38739]
[1727297986448,0.38738,2581.8,2581.7,0.38739]
[1727297987343,0.38737,2581.9,2581.8,0.38738]
[1727297988751,0.38737,2581.9,2581.8,3.59518]
[1727297988948,0.38737,2581.9,2581.8,3.98538]
[1727297990439,0.77946,2582.0,2581.9,0.38736]
[1727297990644,0.77946,2582.0,2581.9,1.16686]
[1727297996350,0.3921,2582.0,2581.9,1.16686]
[1727297996546,0.38735,2582.0,2581.9,1.16686]
[1727297998355,0.38734,2582.1,2582.0,0.38734]
[1727297998550,0.3957,2582.2,2582.1,2.19683]
[1727297998752,0.361,2582.4,2582.3,0.3873]
[1727297998958,0.38727,2582.6,2582.5,0.38727]
[1727297999260,0.76804,2582.7,2582.6,1.4]
[1727298000356,0.3808,2582.7,2582.6,1.78726]
[1727298000553,0.7962,2582.9,2582.8,0.38723]
[1727298000554,0.77622,2582.9,2582.8,0.38723]
[1727298001054,0.389,2582.9,2582.8,0.38723]
[1727298002454,0.3908,2583.0,2582.9,0.38721]
[1727298002661,0.3908,2583.0,2582.9,2.16541]
[1727298002958,0.3908,2583.0,2582.9,2.56611]
[1727298003156,0.3908,2583.0,2582.9,2.1789]
[1727298003362,0.3908,2583.0,2582.8,1.4]
[1727298003554,0.38721,2582.9,2582.8,1.4]
[1727298004061,0.3908,2583.0,2582.7,3.07784]
[1727298004062,0.38723,2582.8,2582.7,3.07784]
[1727298004260,0.3908,2583.0,2582.5,3.5983]
[1727298004261,1.7908,2583.0,2582.5,3.98557]
[1727298004563,2.75883,2583.0,2582.6,1.27025]
[1727298004854,0.38723,2582.8,2582.6,1.27025]
[1727298005064,0.38723,2582.8,2582.7,1.4]
[1727298005265,0.3908,2583.0,2582.9,0.38721]
[1727298005454,0.3908,2583.0,2582.9,1.78721]
[1727298005654,3.614,2583.2,2583.0,0.3872]
[1727298005655,3.59498,2583.2,2583.0,0.3872]
[1727298005949,3.99298,2583.2,2583.1,1.8076]
[1727298006160,0.398,2583.2,2583.1,2.19478]
[1727298006357,0.3942,2583.3,2583.2,0.38717]
[1727298006554,0.3942,2583.3,2583.2,1.78717]
[1727298007357,0.78135,2583.3,2583.2,1.4]
[1727298007660,0.78135,2583.3,2583.1,2.19478]
[1727298009546,0.38717,2583.2,2583.0,1.17789]
[1727298009752,0.38717,2583.2,2583.0,0.77769]
[1727298009953,0.3918,2583.1,2583.0,0.77769]
[1727298010361,0.77898,2583.1,2583.0,0.883]
[1727298012153,0.3872,2583.0,2582.9,0.76751]
[1727298012552,0.3872,2583.0,2582.9,0.883]
[1727298012756,0.38721,2582.9,2582.8,4.6078]
[1727298012948,0.38721,2582.9,2582.8,4.47803]
[1727298013560,0.38721,2582.9,2582.8,4.0908]
[1727298014454,0.38721,2582.9,2582.8,4.47803]
[1727298014950,0.38721,2582.9,2582.8,4.0908]
[1727298015153,0.38721,2582.9,2582.8,5.4908]
[1727298015347,0.38721,2582.9,2582.8,3.2078]
[1727298015348,1.35525,2582.9,2582.8,3.2078]
[1727298015554,0.38726,2582.6,2582.2,4.6078]
[1727298015759,5.57584,2582.9,2582.4,0.883]
[1727298015760,0.38727,2582.5,2582.4,0.883]
[1727298016163,0.38729,2582.4,2582.3,0.883]
[1727298016357,0.76109,2582.4,2582.2,5.0067]
[1727298016558,0.3873,2582.3,2582.2,5.8897]
[1727298016763,0.7889,2582.3,2582.2,5.39402]
[1727298016953,0.7889,2582.3,2582.2,4.6078]
[1727298017154,0.38732,2582.2,2582.1,1.4]
[1727298017666,0.38732,2582.2,2582.1,1.78733]
[1727298019855,0.38732,2582.2,2582.1,1.4]
[1727298020161,0.38733,2582.1,2582.0,1.4]
[1727298020360,0.38733,2582.1,2582.0,1.78735]
[1727298020560,0.38733,2582.1,2582.0,1.4]
[1727298020962,0.38733,2582.1,2582.0,1.78735]
[1727298021967,0.38735,2582.0,2581.9,5.39406]
[1727298022261,0.3722,2582.0,2581.9,5.39406]
[1727298022466,0.75955,2582.0,2581.9,5.39406]
[1727298022668,0.3722,2582.0,2581.9,5.39406]
[1727298022970,0.75955,2582.0,2581.9,5.39406]
[1727298023266,0.75955,2582.0,2581.9,4.99516]
[1727298023457,0.75955,2582.0,2581.9,4.6078]
[1727298024570,0.3722,2582.0,2581.9,4.99516]
[1727298025269,0.75955,2582.0,2581.9,4.99516]
[1727298026370,0.3722,2582.0,2581.9,4.99516]
[1727298026970,0.75955,2582.0,2581.9,4.99516]
[1727298027469,1.34058,2582.0,2581.6,0.3944]
[1727298027768,0.75956,2582.0,2581.9,0.38736]
[1727298028779,0.38742,2581.6,2581.5,0.38742]
[1727298029072,0.38743,2581.5,2581.4,0.38743]
[1727298029371,0.78113,2581.5,2581.4,0.38743]
[1727298029565,0.38744,2581.4,2581.3,0.3739]
[1727298029961,0.3937,2581.5,2581.4,0.38744]
[1727298030268,0.78113,2581.5,2581.3,0.76134]
[1727298030471,0.78113,2581.5,2581.4,0.38744]
[1727298030662,0.78113,2581.5,2581.3,0.76134]
[1727298031266,0.3937,2581.5,2581.3,0.76134]
[1727298031459,0.78114,2581.5,2581.3,0.76134]
[1727298031869,0.3804,2581.4,2581.3,0.76134]
[1727298035378,0.76784,2581.4,2581.3,0.3739]
[1727298036962,0.38745,2581.3,2581.2,3.2078]
[1727298037187,0.38748,2581.1,2581.0,0.7726]
[1727298037368,0.96872,2581.1,2580.8,3.9895]
[1727298037673,1.78751,2580.9,2580.8,3.5929]
[1727298038279,0.7542,2581.0,2580.8,3.98043]
[1727298038479,0.38751,2580.9,2580.8,3.98043]
[1727298039581,1.14171,2581.0,2580.8,3.98043]
[1727298040075,0.38751,2580.9,2580.8,3.98043]
[1727298041873,0.38751,2580.9,2580.8,3.5929]
[1727298042378,0.38751,2580.9,2580.8,3.2078]
[1727298042580,0.38754,2580.7,2580.6,0.7518]
[1727298042772,0.38754,2580.7,2580.6,0.3726]
[1727298044279,1.4,2580.8,2580.6,0.3726]
[1727298044475,0.38754,2580.7,2580.6,0.3726]
[1727298049676,0.38757,2580.6,2580.4,1.16018]
[1727298049877,0.8031,2580.6,2580.4,1.16018]
[1727298050175,0.8031,2580.6,2580.5,0.38757]
[1727298052586,1.19066,2580.6,2580.5,0.38757]
[1727298052781,0.8031,2580.6,2580.5,0.38757]
[1727298053786,1.19066,2580.6,2580.5,0.38757]
[1727298053986,2.59066,2580.6,2580.5,0.38757]
[1727298054181,0.361,2581.3,2580.5,3.8752]
[1727298054385,0.7821,2581.2,2580.9,3.2078]
[1727298054595,0.38748,2581.1,2581.0,0.3911]
[1727298054780,1.78748,2581.1,2581.0,0.3911]
[1727298056082,0.3875,2581.0,2580.9,3.2078]
[1727298056282,0.38752,2580.9,2580.8,0.38753]
[1727298056491,0.38753,2580.8,2580.7,0.3798]
[1727298057294,1.78753,2580.8,2580.7,0.3798]
[1727298058099,2.56543,2580.8,2580.7,0.3798]
[1727298064198,2.56543,2580.8,2580.7,0.76734]
[1727298064601,1.78753,2580.8,2580.7,0.76734]
[1727298067797,1.78753,2580.8,2580.7,0.3798]
[1727298071899,0.38753,2580.8,2580.7,0.3798]
[1727298072294,0.4079,2581.0,2580.7,0.3798]
[1727298072495,2.19541,2581.0,2580.9,0.38751]
[1727298073296,1.78751,2581.0,2580.9,0.38751]
[1727298073900,5.66191,2581.0,2580.9,0.38751]
[1727298074297,1.78751,2581.0,2580.9,0.38751]
[1727298074498,5.66191,2581.0,2580.9,0.38751]
[1727298074997,1.78751,2581.0,2580.7,0.3798]
[1727298075199,0.38752,2580.9,2580.8,0.38753]
[1727298075709,1.78751,2581.0,2580.8,0.38753]
[1727298077197,1.4,2581.0,2580.8,0.38753]
[1727298077494,1.78751,2581.0,2580.8,0.38753]
[1727298078005,0.38751,2580.9,2580.8,0.38753]
[1727298078609,0.38751,2580.9,2580.7,0.76734]
[1727298078811,0.38751,2580.9,2580.7,0.3798]
[1727298079106,0.38751,2580.9,2580.7,0.76733]
[1727298079498,0.38751,2580.9,2580.8,0.38753]
[1727298082003,0.38751,2580.9,2580.8,0.99343983]
[1727298082199,0.38751,2580.9,2580.8,0.99344768]
[1727298082709,0.38751,2580.9,2580.8,2.00567173]
[1727298083607,0.38751,2580.9,2580.8,1.39975405]
[1727298084303,0.38751,2580.9,2580.8,0.38753]
[1727298084501,0.38751,2580.9,2580.8,1.39975405]
[1727298085405,0.38751,2580.9,2580.8,1.01222405]
[1727298086112,0.38751,2580.9,2580.7,1.77956405]
[1727298086507,0.38753,2580.8,2580.7,1.78417345]
[1727298086709,0.79013,2580.9,2580.7,3.76252985]
[1727298086914,0.79013,2580.9,2580.8,1.01683345]
[1727298087205,0.38753,2580.9,2580.8,1.40436345]
[1727298087606,0.38753,2580.9,2580.8,3.38267854]
[1727298087806,0.38753,2580.9,2580.8,2.01027036]
[1727298088198,0.38753,2580.9,2580.8,3.38268624]
[1727298088402,0.38753,2580.9,2580.8,3.38269598]
[1727298088611,0.38753,2580.9,2580.8,2.01027036]
[1727298088909,0.38753,2580.9,2580.8,0.99343691]
[1727298089414,0.38753,2580.9,2580.8,0.38753]
[1727298089909,0.38753,2580.9,2580.8,0.99344775]
[1727298090105,0.38753,2580.9,2580.8,0.38753]
[1727298090296,0.38753,2580.9,2580.8,0.99345945]
[1727298090705,0.38753,2580.9,2580.8,0.38753]
[1727298090906,0.38753,2580.9,2580.7,1.78416345]
[1727298091100,0.38753,2580.8,2580.7,1.78416345]
[1727298091301,0.38753,2580.8,2580.7,2.39009802]
[1727298091611,0.38753,2580.8,2580.7,3.35959246]
[1727298091910,0.38753,2580.8,2580.7,2.39009802]
[1727298092707,2.75636,2580.8,2580.7,1.62276802]
[1727298092914,3.15796,2580.8,2580.7,0.60593457]
[1727298093109,1.35641,2580.7,2580.6,3.2078]
[1727298093304,3.14961,2580.7,2580.6,3.81378662]
[1727298094711,3.14961,2580.7,2580.6,3.81378551]
[1727298094913,0.78074,2580.7,2580.6,3.81378551]
[1727298095316,0.78074,2580.7,2580.6,5.21817896]
[1727298095506,0.78074,2580.7,2580.6,4.20134551]
[1727298096011,0.78074,2580.7,2580.6,5.21817896]
[1727298096310,0.78074,2580.7,2580.6,4.20134551]
[1727298096510,0.78074,2580.7,2580.6,6.59066275]
[1727298096813,0.78074,2580.7,2580.6,5.21817896]
[1727298097311,0.78074,2580.7,2580.6,6.59067154]
[1727298097616,0.78074,2580.7,2580.6,6.59075679]
[1727298097812,0.78074,2580.7,2580.6,5.57383809]
[1727298098015,0.78074,2580.7,2580.6,6.59075541]
[1727298098207,0.78074,2580.7,2580.6,6.59072909]
[1727298098407,0.78074,2580.7,2580.6,5.57381177]
[1727298098907,0.78074,2580.7,2580.6,6.59077544]
[1727298099302,0.78074,2580.7,2580.6,5.57381177]
[1727298099507,0.78074,2580.7,2580.6,7.09214785]
[1727298099707,0.3932,2580.7,2580.6,7.09214785]
[1727298100015,0.78074,2580.7,2580.6,5.18625177]
[1727298100417,0.78074,2580.7,2580.6,6.70458785]
[1727298100915,0.78074,2580.7,2580.6,5.18625177]
[1727298101305,0.3932,2580.7,2580.6,7.09214785]
[1727298101909,0.78074,2580.7,2580.6,7.09214785]
[1727298102105,0.3932,2580.7,2580.6,7.09214785]
[1727298102311,0.78074,2580.7,2580.6,7.09214785]
[1727298102516,0.3932,2580.7,2580.6,7.09214785]
[1727298102917,0.3932,2580.7,2580.6,7.09167264]
[1727298103309,0.3932,2580.7,2580.6,7.46907264]
[1727298103713,0.78074,2580.7,2580.6,7.46907264]
[1727298104119,0.3932,2580.7,2580.6,7.46907264]
[1727298104621,0.78074,2580.7,2580.6,7.46907264]
[1727298104817,0.3932,2580.7,2580.6,7.46907264]
[1727298108813,0.3932,2580.7,2580.6,6.86311345]
[1727298109015,0.3932,2580.7,2580.6,7.46905562]
[1727298109217,0.3932,2580.7,2580.6,7.46905455]
[1727298109823,0.3932,2580.7,2580.6,8.43856319]
[1727298110022,0.3932,2580.7,2580.6,7.46905455]
[1727298111631,0.3932,2580.7,2580.6,5.95071847]
[1727298111826,0.3932,2580.7,2580.6,8.43855689]
[1727298112422,0.3932,2580.7,2580.6,6.86311345]
[1727298112624,0.3932,2580.7,2580.6,6.92022023]
[1727298112823,0.3932,2580.7,2580.6,5.94968022]
[1727298114735,0.3932,2580.7,2580.6,7.4680163]
[1727298115139,0.3932,2580.7,2580.6,5.94968022]
[1727298115429,0.3932,2580.7,2580.6,7.4680163]
[1727298115625,0.3932,2580.7,2580.6,5.94968022]
[1727298115821,0.3932,2580.7,2580.6,6.96520159]
[1727298116035,0.3932,2580.7,2580.6,6.35926203]
[1727298116532,0.3932,2580.7,2580.6,6.96521689]
[1727298116730,0.3932,2580.7,2580.6,7.4680316]
[1727298119631,0.3932,2580.7,2580.6,7.46801794]
[1727298121125,0.3932,2580.7,2580.6,8.4375078]
[1727298121330,0.3932,2580.7,2580.6,7.46801794]
[1727298121838,0.3932,2580.7,2580.6,3.49525794]
[1727298122029,0.96891,2580.6,2580.4,1.01586512]
[1727298122339,0.96891,2580.6,2580.2,1.90863608]
[1727298122340,0.38759,2580.4,2580.2,1.40348512]
[1727298122544,0.38758,2580.5,2580.3,0.3876]
[1727298122737,1.78759,2580.4,2580.3,0.3876]
[1727298123230,1.78759,2580.4,2580.2,0.38761]
[1727298123540,0.3954,2580.3,2580.2,0.38761]
[1727298124025,0.3954,2580.3,2580.2,1.40347512]
[1727298124231,0.3954,2580.3,2580.2,0.38761]
[1727298125338,2.18301,2580.3,2580.2,0.38761]
[1727298125646,0.38762,2580.2,2580.1,4.61129512]
[1727298125831,1.7954,2580.3,2580.1,4.61129512]
[1727298126033,1.7954,2580.3,2580.1,3.59543]
[1727298126231,2.18301,2580.3,2580.2,0.38762]
[1727298126432,2.18301,2580.3,2580.1,0.38763]
[1727298126833,0.38765,2580.0,2579.9,1.01586512]
[1727298127036,0.38765,2580.0,2579.8,3.59547]
[1727298127235,1.7839,2579.9,2579.8,3.2078]
[1727298127439,2.17157,2579.9,2579.8,3.2078]
[1727298127632,0.3877,2579.7,2579.5,1.01586512]
[1727298127931,1.4,2579.6,2579.5,0.38771]
[1727298128243,1.4,2579.6,2579.5,3.59551]
[1727298128643,1.78771,2579.6,2579.4,2.0595]
[1727298128940,0.4022,2579.5,2579.4,2.44724]
[1727298129742,0.4022,2579.5,2579.4,0.77364]
[1727298137451,0.78993,2579.5,2579.4,0.77364]
[1727298137648,0.4022,2579.5,2579.4,0.77364]
[1727298140451,0.3958,2579.8,2579.4,4.2627]
[1727298140751,1.78765,2580.1,2579.9,0.38767]
[1727298140948,0.38765,2580.1,2580.0,0.399]
[1727298142451,3.2078,2580.4,2580.0,0.399]
[1727298142648,1.4,2580.2,2580.1,3.59544]
[1727298142950,1.78762,2580.2,2580.1,3.59544]
[1727298143450,1.78762,2580.2,2580.1,3.2078]
[1727298143650,5.66362,2580.2,2580.1,3.2078]
[1727298144449,6.63268,2580.2,2580.1,3.2078]
[1727298144647,5.66362,2580.2,2580.1,3.2078]
[1727298146455,6.63268,2580.2,2580.1,3.2078]
[1727298148155,0.38767,2579.9,2579.8,1.18928]
[1727298148346,0.38767,2579.9,2579.8,4.39708]
[1727298148347,1.78767,2579.9,2579.8,4.39708]
[1727298149249,1.78767,2579.9,2579.8,1.18928]
[1727298150356,1.78767,2579.9,2579.8,4.0094]
[1727298150548,1.78767,2579.9,2579.7,0.405]
[1727298150549,0.38768,2579.8,2579.7,0.405]
[1727298150750,0.75688,2579.8,2579.7,0.405]
[1727298150954,1.57298,2579.8,2579.7,0.405]
[1727298154560,2.97298,2579.8,2579.7,0.7927]
[1727298155949,2.56428,2579.8,2579.7,0.7927]
[1727298156148,2.56428,2579.8,2579.7,1.1866]
[1727298156348,2.56428,2579.8,2579.7,1.5787]
[1727298157864,1.78768,2579.8,2579.7,1.5787]
[1727298162362,0.38768,2579.8,2579.7,1.5787]
[1727298162678,0.38767,2579.9,2579.8,0.38766]
[1727298163671,0.38768,2579.8,2579.7,1.57868]
[1727298163862,1.78768,2579.8,2579.7,1.57868]
[1727298164070,1.78768,2579.8,2579.7,5.45468]
[1727298164267,1.1386,2580.1,2579.7,5.067]
[1727298164574,1.78768,2579.8,2579.7,1.5787]
[1727298165257,1.78768,2579.8,2579.7,5.4547]
[1727298167070,1.78768,2579.8,2579.7,1.5787]
[1727298172082,1.78768,2579.8,2579.7,2.59456512]
[1727298172787,1.78768,2579.8,2579.7,1.5787]
[1727298173788,1.78768,2579.8,2579.7,2.59456512]
[1727298174479,1.78768,2579.8,2579.7,1.5787]
[1727298176180,1.78768,2579.8,2579.7,2.59456512]
[1727298176387,1.78768,2579.8,2579.7,1.5787]
[1727298176579,1.78768,2579.8,2579.7,0.7927]
[1727298178277,1.78768,2579.8,2579.7,1.80856512]
[1727298178674,1.78768,2579.8,2579.7,0.405]
[1727298178880,0.3877,2579.7,2579.6,4.61136512]
[1727298179082,1.5661,2579.7,2579.6,3.5955]